fUST/lending_fUST_20260520
["ID","MTS","AMOUNT","RATE_DAILY","PERIOD"]
[422705543,1779276639000,-160.0,8.063e-05,2]
[422705540,1779276639000,-151.0,8.052e-05,2]
[422705552,1779276639000,-519.22894222,8.118e-05,2]
[422705532,1779276639000,-600.0,7.895e-05,2]
[422705579,1779276641000,-4052.64258996,8.119e-05,2]
[422705588,1779276644000,-4895.9349,8.119e-05,2]
[422705586,1779276644000,-4206.55557227,8.118e-05,2]
[422705587,1779276644000,-1535.25306403,8.119e-05,2]
[422705606,1779276647000,-337.2,8.119e-05,2]
[422705607,1779276647000,-5622.71512308,8.119e-05,2]
[422705605,1779276647000,-7555.21288691,8.119e-05,2]
[422705604,1779276647000,-64339.69088915,8.119e-05,2]
[422705602,1779276647000,-448.3963019,8.119e-05,2]
[422705603,1779276647000,-45.26980922,8.119e-05,2]
[422705601,1779276647000,-540.92371165,8.119e-05,2]
[422705608,1779276673000,-300.0,8.118e-05,2]
[422705628,1779277539000,-500.0,7.713e-05,2]
[422705629,1779277539000,-483.7927889,7.825e-05,2]
[422705630,1779277539000,-152.0,7.937e-05,7]
[422705633,1779277539000,-300.0,8.051e-05,2]
[422705631,1779277539000,-152.0,7.937e-05,7]
[422705635,1779277539000,-458.8118034,8.052e-05,2]
[422705634,1779277539000,-456.5974351,8.052e-05,2]
[422705636,1779277539000,-65.33468714,8.052e-05,2]
[422705632,1779277539000,-163.0,7.944e-05,2]
[422705665,1779277833000,-474.11693312,7.998e-05,2]
[422705661,1779277833000,-500.0,7.713e-05,2]
[422705662,1779277833000,-300.0,7.943e-05,2]
[422705663,1779277833000,-5135.0,7.944e-05,2]
[422705664,1779277833000,-151.0,7.944e-05,2]
[422705666,1779277833000,-391.26274796,8.052e-05,2]
[422705667,1779277833000,-456.5974351,8.052e-05,2]
[422705668,1779277833000,-456.5974351,8.052e-05,2]
[422705669,1779277833000,-160.0,8.063e-05,2]
[422705673,1779277833000,-766.43500783,8.072e-05,2]
[422705683,1779277833000,-3399.61421864,8.119e-05,2]
[422705675,1779277833000,-161.70661154,8.072e-05,2]
[422705679,1779277833000,-391.0928465,8.072e-05,2]
[422705677,1779277833000,-9229.0475456,8.072e-05,2]
[422705681,1779277833000,-794.0,8.1e-05,2]
[422705733,1779277838000,-30913.0367879,8.119e-05,2]
[422705730,1779277838000,-19770.99514804,8.119e-05,2]
[422705734,1779277838000,-1242.06307375,8.119e-05,2]
[422705732,1779277838000,-37757.25494144,8.119e-05,2]
[422705731,1779277838000,-3526.39167749,8.119e-05,2]
[422705729,1779277838000,-16474.2365636,8.119e-05,2]
[422705728,1779277838000,-14362.7066811,8.119e-05,2]
[422705726,1779277838000,-160.0,8.072e-05,2]
[422705727,1779277838000,-33742.83580945,8.119e-05,2]
[422705749,1779277840000,-359.50100004,8.119e-05,2]
[422705751,1779277840000,-452.28667416,8.119e-05,2]
[422705750,1779277840000,-1532.90452827,8.119e-05,2]
[422705762,1779277843000,-8806.98300026,8.119e-05,2]
[422705760,1779277843000,-1826.03086402,8.119e-05,2]
[422705759,1779277843000,-427.77401337,8.119e-05,2]
[422705761,1779277843000,-857.52287274,8.119e-05,2]
[422705758,1779277843000,-5064.92389278,8.119e-05,2]
[422705774,1779277846000,-462.34,8.119e-05,2]
[422705775,1779277846000,-1298.55723155,8.119e-05,2]
[422705776,1779277846000,-7113.5952742,8.119e-05,2]
[422705778,1779277846000,-90265.71876339,8.119e-05,2]
[422705777,1779277846000,-4549.94968314,8.119e-05,2]
[422705797,1779278473000,-500.0,7.713e-05,2]
[422705798,1779278492000,-398.8121355,7.957e-05,2]
[422705799,1779278509000,-265.874757,7.957e-05,2]
[422705800,1779278526000,-177.249838,7.957e-05,2]
[422705801,1779278542000,-177.249838,7.957e-05,2]
[422705802,1779278560000,-177.249838,7.957e-05,2]
[422705803,1779278577000,-1413.0,8.086e-05,2]
[422705804,1779278594000,-649.976,8.086e-05,2]
[422705808,1779278756000,-123.78669139,7.919e-05,2]
[422705807,1779278756000,-300.0,7.918e-05,2]
[422705811,1779278949000,-158.47247931,7.132e-05,2]
[422706019,1779279038000,-500.0,7.713e-05,2]
[422706021,1779279038000,-300.0,7.917e-05,2]
[422706015,1779279038000,-8.89754289,7.132e-05,2]
[422706029,1779279038000,-500.0,7.918e-05,2]
[422706023,1779279038000,-500.0,7.918e-05,2]
[422706025,1779279038000,-500.0,7.918e-05,2]
[422706027,1779279038000,-633.81576125,7.918e-05,2]
[422706036,1779279038000,-500.0,7.918e-05,2]
[422706038,1779279038000,-500.0,7.918e-05,2]
[422706032,1779279038000,-500.0,7.918e-05,2]
[422706034,1779279038000,-518.85246245,7.918e-05,2]
[422706046,1779279038000,-62633.41302928,7.919e-05,2]
[422706017,1779279038000,-471.8096878,7.525e-05,2]
[422706042,1779279038000,-500.0,7.918e-05,2]
[422706044,1779279038000,-315.07179673,7.918e-05,2]
[422706048,1779279038000,-260.96206782,7.919e-05,2]
[422706050,1779279038000,-151.0,8.059e-05,2]
[422706052,1779279038000,-766.43500783,8.1e-05,2]
[422706054,1779279038000,-161.70661154,8.1e-05,2]
[422706058,1779279038000,-794.0,8.1e-05,2]
[422706064,1779279038000,-160.0,8.117e-05,2]
[422706056,1779279038000,-160.0,8.1e-05,2]
[422706060,1779279038000,-4969.6926132,8.111e-05,2]
[422706066,1779279038000,-27239.97442998,8.119e-05,2]
[422706062,1779279038000,-2518.766078,8.111e-05,2]
[422706040,1779279038000,-500.0,7.918e-05,2]
[422706315,1779279041000,-981.08142789,8.119e-05,2]
[422706317,1779279041000,-443.0,8.123e-05,2]
[422706318,1779279041000,-184.5110072,8.214e-05,2]
[422706316,1779279041000,-13334.06636655,8.119e-05,2]
[422706320,1779279041000,-500.0,8.218e-05,2]
[422706321,1779279041000,-500.0,8.218e-05,2]
[422706319,1779279041000,-500.0,8.218e-05,2]
[422706322,1779279041000,-500.0,8.218e-05,2]
[422706323,1779279041000,-206.92276529,8.218e-05,2]
[422706332,1779279043000,-293.07723471,8.218e-05,2]
[422706333,1779279043000,-389.07564643,8.218e-05,2]
[422706338,1779279043000,-500.0,8.218e-05,2]
[422706339,1779279043000,-500.0,8.218e-05,2]
[422706341,1779279043000,-500.0,8.218e-05,2]
[422706336,1779279043000,-500.0,8.218e-05,2]
[422706344,1779279043000,-500.0,8.218e-05,2]
[422706334,1779279043000,-110.92435357,8.218e-05,2]
[422706340,1779279043000,-500.0,8.218e-05,2]
[422706345,1779279043000,-500.0,8.218e-05,2]
[422706347,1779279043000,-57.01001526,8.218e-05,2]
[422706346,1779279043000,-500.0,8.218e-05,2]
[422706343,1779279043000,-500.0,8.218e-05,2]
[422706342,1779279043000,-500.0,8.218e-05,2]
[422706359,1779279046000,-500.0,8.218e-05,2]
[422706354,1779279046000,-156.43310776,8.218e-05,2]
[422706353,1779279046000,-442.98998474,8.218e-05,2]
[422706355,1779279046000,-500.0,8.218e-05,2]
[422706356,1779279046000,-500.0,8.218e-05,2]
[422706363,1779279046000,-1085.7394,8.219e-05,2]
[422706362,1779279046000,-331.545,8.218e-05,2]
[422706358,1779279046000,-500.0,8.218e-05,2]
[422706360,1779279046000,-500.0,8.218e-05,2]
[422706361,1779279046000,-500.0,8.218e-05,2]
[422706364,1779279046000,-2587.5776,8.219e-05,2]
[422706366,1779279046000,-500.0,8.219e-05,2]
[422706365,1779279046000,-500.0,8.219e-05,2]
[422706368,1779279046000,-239.76640258,8.219e-05,2]
[422706367,1779279046000,-500.0,8.219e-05,2]
[422706357,1779279046000,-500.0,8.218e-05,2]
[422706386,1779279047000,-500.0,8.219e-05,2]
[422706385,1779279047000,-1125.33,8.219e-05,2]
[422706392,1779279047000,-552.25,8.219e-05,2]
[422706393,1779279047000,-500.0,8.219e-05,2]
[422706397,1779279047000,-500.0,8.219e-05,2]
[422706396,1779279047000,-500.0,8.219e-05,2]
[422706395,1779279047000,-500.0,8.219e-05,2]
[422706394,1779279047000,-920.77,8.219e-05,2]
[422706401,1779279047000,-500.0,8.219e-05,2]
[422706399,1779279047000,-500.0,8.219e-05,2]
[422706400,1779279047000,-2720.38,8.219e-05,2]
[422706412,1779279047000,-548.28,8.219e-05,2]
[422706405,1779279047000,-1449.42,8.219e-05,2]
[422706406,1779279047000,-1185.59,8.219e-05,2]
[422706411,1779279047000,-500.0,8.219e-05,2]
[422706389,1779279047000,-500.0,8.219e-05,2]
[422706398,1779279047000,-1423.18,8.219e-05,2]
[422706383,1779279047000,-500.0,8.219e-05,2]
[422706402,1779279047000,-500.0,8.219e-05,2]
[422706387,1779279047000,-514.55811027,8.219e-05,2]
[422706369,1779279047000,-260.23359742,8.219e-05,2]
[422706371,1779279047000,-500.0,8.219e-05,2]
[422706370,1779279047000,-500.0,8.219e-05,2]
[422706372,1779279047000,-500.0,8.219e-05,2]
[422706378,1779279047000,-500.0,8.219e-05,2]
[422706374,1779279047000,-852.61,8.219e-05,2]
[422706375,1779279047000,-500.0,8.219e-05,2]
[422706388,1779279047000,-710.85,8.219e-05,2]
[422706376,1779279047000,-500.0,8.219e-05,2]
[422706377,1779279047000,-500.0,8.219e-05,2]
[422706380,1779279047000,-500.0,8.219e-05,2]
[422706391,1779279047000,-500.0,8.219e-05,2]
[422706381,1779279047000,-1063.78,8.219e-05,2]
[422706379,1779279047000,-500.0,8.219e-05,2]
[422706382,1779279047000,-500.0,8.219e-05,2]
[422706384,1779279047000,-500.0,8.219e-05,2]
[422706373,1779279047000,-500.0,8.219e-05,2]
[422706408,1779279047000,-500.0,8.219e-05,2]
[422706390,1779279047000,-606.31655786,8.219e-05,2]
[422706403,1779279047000,-500.0,8.219e-05,2]
[422706429,1779279047000,-500.0,8.219e-05,2]
[422706437,1779279047000,-500.0,8.219e-05,2]
[422706447,1779279047000,-219.05324606,8.219e-05,2]
[422706435,1779279047000,-500.0,8.219e-05,2]
[422706438,1779279047000,-500.0,8.219e-05,2]
[422706434,1779279047000,-1018.12,8.219e-05,2]
[422706436,1779279047000,-500.0,8.219e-05,2]
[422706439,1779279047000,-500.0,8.219e-05,2]
[422706433,1779279047000,-500.0,8.219e-05,2]
[422706432,1779279047000,-500.0,8.219e-05,2]
[422706441,1779279047000,-333.175171,8.219e-05,2]
[422706443,1779279047000,-333.175171,8.219e-05,2]
[422706442,1779279047000,-333.175171,8.219e-05,2]
[422706440,1779279047000,-785.55,8.219e-05,2]
[422706444,1779279047000,-333.175171,8.219e-05,2]
[422706446,1779279047000,-333.175171,8.219e-05,2]
[422706445,1779279047000,-333.175171,8.219e-05,2]
[422706428,1779279047000,-500.0,8.219e-05,2]
[422706410,1779279047000,-500.0,8.219e-05,2]
[422706430,1779279047000,-500.0,8.219e-05,2]
[422706427,1779279047000,-212.91368,8.219e-05,2]
[422706409,1779279047000,-500.0,8.219e-05,2]
[422706404,1779279047000,-701.56,8.219e-05,2]
[422706407,1779279047000,-500.0,8.219e-05,2]
[422706414,1779279047000,-1598.03,8.219e-05,2]
[422706424,1779279047000,-500.0,8.219e-05,2]
[422706416,1779279047000,-500.0,8.219e-05,2]
[422706415,1779279047000,-500.0,8.219e-05,2]
[422706417,1779279047000,-500.0,8.219e-05,2]
[422706423,1779279047000,-500.0,8.219e-05,2]
[422706418,1779279047000,-500.0,8.219e-05,2]
[422706419,1779279047000,-868.02,8.219e-05,2]
[422706425,1779279047000,-500.0,8.219e-05,2]
[422706413,1779279047000,-500.0,8.219e-05,2]
[422706420,1779279047000,-500.0,8.219e-05,2]
[422706422,1779279047000,-500.0,8.219e-05,2]
[422706421,1779279047000,-500.0,8.219e-05,2]
[422706426,1779279047000,-151.0,8.219e-05,2]
[422706431,1779279047000,-500.0,8.219e-05,2]
[422706466,1779280145000,-151.0,6.936e-05,2]
[422706468,1779280145000,-151.0,7.151e-05,2]
[422706467,1779280145000,-3916.4441248,7.151e-05,15]
[422706469,1779280145000,-191.5558752,7.196e-05,2]
[422706470,1779280172000,-328.7307947,7.044e-05,2]
[422706476,1779280232000,-148.96973899,7.044e-05,2]
[422706477,1779280232000,-8.4441248,7.196e-05,2]
[422706478,1779280232000,-151.0,7.372e-05,2]
[422706480,1779280232000,-1200.0,7.597e-05,2]
[422706479,1779280232000,-1200.0,7.596e-05,2]
[422706481,1779280232000,-300.0,7.597e-05,2]
[422706483,1779280232000,-300.0,7.597e-05,2]
[422706484,1779280232000,-300.0,7.597e-05,2]
[422706486,1779280232000,-500.0,7.599e-05,2]
[422706496,1779280232000,-607.16624867,7.599e-05,2]
[422706485,1779280232000,-10228.16695051,7.598e-05,2]
[422706482,1779280232000,-300.0,7.597e-05,2]
[422706487,1779280232000,-567.70635313,7.599e-05,2]
[422706492,1779280232000,-500.0,7.599e-05,2]
[422706491,1779280232000,-500.0,7.599e-05,2]
[422706489,1779280232000,-500.0,7.599e-05,2]
[422706490,1779280232000,-254.95580349,7.599e-05,2]
[422706493,1779280232000,-279.89950621,7.599e-05,2]
[422706494,1779280232000,-500.0,7.599e-05,2]
[422706495,1779280232000,-500.0,7.599e-05,2]
[422706497,1779280232000,-21155.45097676,7.6e-05,2]
[422706498,1779280232000,-14357.33476205,7.6e-05,2]
[422706499,1779280232000,-10458.55243871,7.6e-05,2]
[422706488,1779280232000,-500.0,7.599e-05,2]
[422706783,1779280240000,-15496.99999999,7.6e-05,2]
[422706784,1779280240000,-304.0,7.6e-05,2]
[422706793,1779280241000,-897.32323452,8.018e-05,2]
[422706785,1779280241000,-1205.99739293,7.6e-05,2]
[422706787,1779280241000,-500.0,7.724e-05,2]
[422706798,1779280241000,-163.85496265,8.018e-05,2]
[422706788,1779280241000,-250.0,7.8e-05,2]
[422706789,1779280241000,-152.0,7.938e-05,7]
[422706786,1779280241000,-151.0,7.607e-05,2]
[422706797,1779280241000,-897.32323452,8.018e-05,2]
[422706794,1779280241000,-897.32323452,8.018e-05,2]
[422706796,1779280241000,-897.32323452,8.018e-05,2]
[422706790,1779280241000,-152.0,7.94e-05,7]
[422706791,1779280241000,-537.6845,8.014e-05,2]
[422706795,1779280241000,-897.32323452,8.018e-05,2]
[422706799,1779280241000,-408.87603072,8.018e-05,2]
[422706862,1779280241000,-324.59224115,8.018e-05,2]
[422706864,1779280241000,-897.32323452,8.018e-05,2]
[422706868,1779280241000,-897.32323452,8.018e-05,2]
[422706866,1779280241000,-897.32323452,8.018e-05,2]
[422706869,1779280241000,-897.32323452,8.018e-05,2]
[422706792,1779280241000,-151.0,8.014e-05,2]
[422706877,1779280242000,-929.95317033,8.018e-05,2]
[422706875,1779280242000,-897.32323452,8.018e-05,2]
[422706876,1779280242000,-929.95317033,8.018e-05,2]
[422706870,1779280242000,-897.32323452,8.018e-05,2]
[422706873,1779280242000,-897.32323452,8.018e-05,2]
[422706871,1779280242000,-897.32323452,8.018e-05,2]
[422706881,1779280242000,-929.95317033,8.018e-05,2]
[422706872,1779280242000,-897.32323452,8.018e-05,2]
[422706878,1779280242000,-929.95317033,8.018e-05,2]
[422706874,1779280242000,-897.32323452,8.018e-05,2]
[422706880,1779280242000,-929.95317033,8.018e-05,2]
[422706879,1779280242000,-929.95317033,8.018e-05,2]
[422706883,1779280242000,-929.95317033,8.018e-05,2]
[422706885,1779280242000,-1353.59850349,8.018e-05,2]
[422706887,1779280242000,-1600.67691427,8.019e-05,2]
[422706886,1779280242000,-21120.50241543,8.019e-05,2]
[422706889,1779280242000,-20665.42471379,8.019e-05,2]
[422706884,1779280242000,-929.95317033,8.018e-05,2]
[422706888,1779280242000,-42772.01148746,8.019e-05,2]
[422706882,1779280242000,-929.95317033,8.018e-05,2]
[422706904,1779280243000,-382.74849313,8.019e-05,2]
[422706903,1779280243000,-1990.36528009,8.019e-05,2]
[422706913,1779280247000,-5439.51223713,8.019e-05,2]
[422706914,1779280247000,-1954.67440409,8.019e-05,2]
[422706912,1779280247000,-4727.82028005,8.019e-05,2]
[422706917,1779280273000,-151.0,6.832e-05,2]
[422706921,1779280395000,-151.0,6.5e-05,2]
[422706922,1779280395000,-128.615692,6.627e-05,2]
[422706927,1779280470000,-151.0,6.5e-05,2]
[422706928,1779280470000,-132.60973733,6.564e-05,2]
[422706933,1779280785000,-78.11142545,7.02e-05,2]
[422706932,1779280785000,-491.3155098,6.532e-05,2]
[422706931,1779280785000,-151.0,6.5e-05,2]
[422706939,1779281138000,-183.10570198,7.399e-05,2]
[422706938,1779281138000,-300.0,7.399e-05,2]
[422706936,1779281138000,-1200.0,7.397e-05,2]
[422706937,1779281138000,-335.43958643,7.399e-05,2]
[422706935,1779281138000,-491.16505538,7.209e-05,2]
[422706942,1779281179000,-116.89429802,7.399e-05,2]
[422706943,1779281179000,-300.0,7.399e-05,2]
[422706945,1779281179000,-4283.10570198,7.4e-05,2]
[422706944,1779281179000,-300.0,7.399e-05,2]
[422706946,1779281190000,-5000.0,7.4e-05,2]
[422706949,1779281254000,-731.4,7.4e-05,2]
[422706948,1779281254000,-300.0,7.399e-05,2]
[422706951,1779281304000,-9700.0,7.4e-05,2]
[422706950,1779281304000,-300.0,7.399e-05,2]
[422706952,1779281313000,-10000.0,7.4e-05,2]
[422706953,1779281322000,-10000.0,7.4e-05,2]
[422706954,1779281330000,-10000.0,7.4e-05,2]
[422706963,1779281432000,-631.87264066,7.399e-05,2]
[422707001,1779281438000,-325.9079251,7.979e-05,2]
[422706991,1779281438000,-537.6845,7.766e-05,2]
[422707002,1779281438000,-676.87458756,7.986e-05,2]
[422706989,1779281438000,-152.0,7.682e-05,2]
[422706986,1779281438000,-2887.29153961,7.4e-05,2]
[422706985,1779281438000,-481.34175427,7.4e-05,2]
[422706987,1779281438000,-18650.8340001,7.4e-05,2]
[422706984,1779281438000,-300.0,7.399e-05,2]
[422706993,1779281438000,-12112.666526,7.812e-05,2]
[422706983,1779281438000,-300.0,7.399e-05,2]
[422706988,1779281438000,-20897.63597082,7.4e-05,2]
[422706982,1779281438000,-568.12735934,7.399e-05,2]
[422706992,1779281438000,-151.0,7.766e-05,2]
[422706999,1779281438000,-152.0,7.936e-05,7]
[422706994,1779281438000,-557.5788265,7.821e-05,2]
[422707004,1779281438000,-794.0,8.1e-05,2]
[422707006,1779281438000,-2251.077,8.117e-05,2]
[422707003,1779281438000,-160.0,8.059e-05,2]
[422706998,1779281438000,-152.0,7.936e-05,7]
[422707005,1779281438000,-649.976,8.117e-05,2]
[422706995,1779281438000,-578.20924308,7.876e-05,2]
[422706996,1779281438000,-599.60298507,7.931e-05,2]
[422707000,1779281438000,-314.9533603,7.965e-05,2]
[422706990,1779281438000,-500.0,7.736e-05,2]
[422706997,1779281438000,-1283.65101326,7.936e-05,2]
[422707012,1779281439000,-785.60606211,8.117e-05,2]
[422707007,1779281439000,-443.0,8.117e-05,2]
[422707010,1779281439000,-155.17,8.117e-05,2]
[422707016,1779281439000,-785.60606211,8.117e-05,2]
[422707009,1779281439000,-185.0,8.117e-05,2]
[422707011,1779281439000,-785.60606211,8.117e-05,2]
[422707008,1779281439000,-742.0,8.117e-05,2]
[422707013,1779281439000,-785.60606211,8.117e-05,2]
[422707015,1779281439000,-785.60606211,8.117e-05,2]
[422707020,1779281439000,-785.60606211,8.117e-05,2]
[422707023,1779281439000,-785.60606211,8.117e-05,2]
[422707026,1779281439000,-134359.45277926,8.118e-05,2]
[422707024,1779281439000,-785.60606211,8.117e-05,2]
[422707025,1779281439000,-785.60606211,8.117e-05,2]
[422707019,1779281439000,-785.60606211,8.117e-05,2]
[422707018,1779281439000,-785.60606211,8.117e-05,2]
[422707022,1779281439000,-785.60606211,8.117e-05,2]
[422707021,1779281439000,-785.60606211,8.117e-05,2]
[422707014,1779281439000,-785.60606211,8.117e-05,2]
[422707017,1779281439000,-785.60606211,8.117e-05,2]
[422707029,1779281441000,-7905.09469818,8.118e-05,2]
[422707030,1779281441000,-77157.82797074,8.118e-05,2]
[422707036,1779281444000,-603.11298001,8.118e-05,2]
[422707035,1779281444000,-152.0,7.35e-05,2]
[422707067,1779281447000,-152.0,7.939e-05,7]
[422707071,1779281447000,-741.81299024,8.118e-05,2]
[422707069,1779281447000,-152.0,7.939e-05,7]
[422707176,1779281679000,487612.0,0.00017808,120]
[422707178,1779281795000,494.93925108,0.00013853,120]
[422707179,1779281796000,494.93925108,0.0001393,120]
[422707183,1779282031000,686.0,0.00017808,120]
[422707184,1779282074000,-151.0,7.704e-05,2]
[422707185,1779282092000,-478.62050215,7.725e-05,2]
[422707187,1779282109000,-500.0,7.746e-05,2]
[422707188,1779282126000,-152.0,7.942e-05,7]
[422707189,1779282143000,-1356.3147348,7.994e-05,2]
[422707190,1779282160000,-160.0,8.055e-05,2]
[422707191,1779282177000,-152.0,7.941e-05,7]
[422707192,1779282194000,-300.0,8.076e-05,2]
[422707194,1779282333000,-632.37905663,8.018e-05,2]
[422707204,1779282601000,-158.4724793,7.042e-05,2]
[422707205,1779282601000,-141.52831065,7.042e-05,2]
[422707255,1779282632000,-500.0,7.219e-05,2]
[422707251,1779282632000,-500.0,7.219e-05,2]
[422707249,1779282632000,-345.32012562,7.219e-05,2]
[422707242,1779282632000,-500.0,7.219e-05,2]
[422707253,1779282632000,-500.0,7.219e-05,2]
[422707240,1779282632000,-9.47168935,7.042e-05,2]
[422707271,1779282632000,-152.0,7.939e-05,7]
[422707244,1779282632000,-154.67987438,7.219e-05,2]
[422707259,1779282632000,-500.0,7.219e-05,2]
[422707277,1779282632000,-40.93118161,8.016e-05,2]
[422707261,1779282632000,-291.84764896,7.76e-05,2]
[422707257,1779282632000,-500.0,7.219e-05,2]
[422707275,1779282632000,-152.0,7.939e-05,7]
[422707279,1779282632000,-259.06881839,8.016e-05,2]
[422707280,1779282632000,-335.47606869,8.016e-05,2]
[422707265,1779282632000,-208.15235104,7.76e-05,2]
[422707356,1779282639000,-500.0,7.219e-05,2]
[422707355,1779282639000,-500.0,7.219e-05,2]
[422707357,1779282639000,-500.0,7.219e-05,2]
[422707359,1779282639000,-864.52393131,8.016e-05,2]
[422707361,1779282639000,-151.0,8.017e-05,2]
[422707360,1779282639000,-151.0,8.017e-05,2]
[422707362,1779282639000,-151.0,8.017e-05,2]
[422707371,1779282639000,-689.62551838,8.018e-05,2]
[422707358,1779282639000,-643.68,7.219e-05,2]
[422707368,1779282639000,-477.19668,8.018e-05,2]
[422707367,1779282639000,-227.92901912,8.017e-05,2]
[422707363,1779282639000,-483.39735728,8.017e-05,2]
[422707366,1779282639000,-500.0,8.017e-05,2]
[422707369,1779282639000,-151.0,8.018e-05,2]
[422707370,1779282639000,-1480.30345201,8.018e-05,2]
[422707364,1779282639000,-500.0,8.017e-05,2]
[422707372,1779282639000,-1801.55143059,8.018e-05,2]
[422707365,1779282639000,-500.0,8.017e-05,2]
[422707385,1779282641000,-808.03,8.018e-05,2]
[422707386,1779282641000,-1435.25962458,8.018e-05,2]
[422707387,1779282641000,-2467.45075736,8.018e-05,2]
[422707384,1779282641000,-8034.79915667,8.018e-05,2]
[422707383,1779282641000,-23303.10000001,8.018e-05,2]
[422707469,1779282647000,-9844.05508337,8.018e-05,2]
[422707470,1779282647000,-4368.17214258,8.018e-05,2]
[422707471,1779282647000,-14967.13619101,8.018e-05,2]
[422707476,1779283261000,2664.68760425,0.00017808,120]
[422707477,1779283329000,-3042.9803657,0.00012,90]
[422707479,1779283554000,-205.86313704,7.052e-05,2]
[422707486,1779283756000,-250.0,6.971e-05,2]
[422707487,1779283756000,-300.16988928,7.049e-05,2]
[422707485,1779283756000,-6668.036204,6.693e-05,2]
[422707484,1779283756000,-151.0,6.5e-05,2]
[422707503,1779283832000,-216.47641922,7.049e-05,2]
[422707502,1779283832000,-151.0,6.5e-05,2]
[422707504,1779283832000,-18.96358078,7.492e-05,2]
[422707508,1779283832000,-1640.28756286,7.6e-05,2]
[422707506,1779283832000,-300.0,7.599e-05,2]
[422707507,1779283832000,-1200.0,7.599e-05,2]
[422707505,1779283832000,-175.50641922,7.492e-05,2]
[422707542,1779283838000,-151.0,8.018e-05,2]
[422707541,1779283838000,-151.0,8.018e-05,2]
[422707548,1779283838000,-206.76051556,8.112e-05,2]
[422707544,1779283838000,-151.0,8.076e-05,2]
[422707540,1779283838000,-1898.6878491,8e-05,2]
[422707539,1779283838000,-160.0,8e-05,2]
[422707547,1779283838000,-794.0,8.1e-05,2]
[422707546,1779283838000,-3148.9770429,8.1e-05,2]
[422707543,1779283838000,-160.0,8.054e-05,2]
[422707538,1779283838000,-676.87458756,7.989e-05,2]
[422707537,1779283838000,-10588.3336102,7.958e-05,2]
[422707533,1779283838000,-578.20924308,7.879e-05,2]
[422707530,1779283838000,-328.16652329,7.818e-05,2]
[422707532,1779283838000,-6114.00033406,7.824e-05,2]
[422707531,1779283838000,-557.5788265,7.824e-05,2]
[422707529,1779283838000,-537.6845,7.769e-05,2]
[422707528,1779283838000,-151.0,7.767e-05,2]
[422707525,1779283838000,-31929.69794546,7.6e-05,2]
[422707527,1779283838000,-500.0,7.756e-05,2]
[422707536,1779283838000,-152.0,7.941e-05,7]
[422707535,1779283838000,-599.60298507,7.934e-05,2]
[422707534,1779283838000,-2753.55,7.9e-05,2]
[422707526,1779283838000,-34673.25235809,7.718e-05,2]
[422707550,1779283838000,-1151.91879536,8.112e-05,2]
[422707560,1779283838000,-716.82320158,8.117e-05,2]
[422707545,1779283838000,-151.0,8.077e-05,2]
[422707549,1779283838000,-1206.23948444,8.112e-05,2]
[422707551,1779283838000,-1099.15820464,8.112e-05,2]
[422707574,1779283838000,-26325.74633875,8.118e-05,2]
[422707573,1779283838000,-19445.18761424,8.118e-05,2]
[422707575,1779283838000,-1689.72065281,8.118e-05,2]
[422707572,1779283838000,-331.545,8.118e-05,2]
[422707571,1779283838000,-716.82320158,8.117e-05,2]
[422707568,1779283838000,-716.82320158,8.117e-05,2]
[422707569,1779283838000,-716.82320158,8.117e-05,2]
[422707570,1779283838000,-716.82320158,8.117e-05,2]
[422707567,1779283838000,-716.82320158,8.117e-05,2]
[422707566,1779283838000,-716.82320158,8.117e-05,2]
[422707563,1779283838000,-716.82320158,8.117e-05,2]
[422707576,1779283838000,-1651.64540782,8.118e-05,2]
[422707561,1779283838000,-716.82320158,8.117e-05,2]
[422707565,1779283838000,-716.82320158,8.117e-05,2]
[422707562,1779283838000,-716.82320158,8.117e-05,2]
[422707554,1779283838000,-185.0,8.112e-05,2]
[422707557,1779283838000,-155.7542754,8.113e-05,2]
[422707553,1779283838000,-742.0,8.112e-05,2]
[422707559,1779283838000,-716.82320158,8.117e-05,2]
[422707556,1779283838000,-486.472,8.112e-05,2]
[422707558,1779283838000,-716.82320158,8.117e-05,2]
[422707555,1779283838000,-231.966,8.112e-05,2]
[422707552,1779283838000,-649.976,8.112e-05,2]
[422707564,1779283838000,-716.82320158,8.117e-05,2]
[422707590,1779283840000,-2936.42643806,8.118e-05,2]
[422707593,1779283840000,-5339.53196822,8.118e-05,2]
[422707592,1779283840000,-4510.86055612,8.118e-05,2]
[422707591,1779283840000,-1604.14,8.118e-05,2]
[422707617,1779283843000,-151.0,8.217e-05,2]
[422707612,1779283843000,-244.60689651,8.185e-05,2]